[Event "*** Titled Tuesday Blitz"]
[Site "Chess.com"]
[Date "2021.03.30"]
[Round "1"]
[White "Ave_Mariia"]
[Black "TheCairnTerrier"]
[Result "1-0"]
[WhiteElo "2509"]
[BlackElo "2133"]
[TimeControl "180+1"]
[EndTime "10:07:21 PDT"]
[Termination "Ave_Mariia won by resignation"]

1. d4 {[%clk 0:03:00.9]} 1... Nf6 {[%clk 0:02:59.7]} 2. c4 {[%clk 0:03:01]} 2...
g6 {[%clk 0:02:59.8]} 3. Nc3 {[%clk 0:03:00.6]} 3... Bg7 {[%clk 0:02:59.7]} 4.
e4 {[%clk 0:03:00.5]} 4... d6 {[%clk 0:03:00.2]} 5. Be2 {[%clk 0:03:00.2]} 5...
O-O {[%clk 0:02:55.6]} 6. Nf3 {[%clk 0:03:00.3]} 6... Na6 {[%clk 0:02:55.6]} 7.
Be3 {[%clk 0:02:50.9]} 7... Ng4 {[%clk 0:02:54.5]} 8. Bg5 {[%clk 0:02:39.2]}
8... f6 {[%clk 0:02:54.7]} 9. Bh4 {[%clk 0:02:36.4]} 9... e5 {[%clk 0:02:48.8]}
10. O-O {[%clk 0:02:32.4]} 10... Nh6 {[%clk 0:02:45.4]} 11. Qd2 {[%clk
0:02:24.3]} 11... c6 {[%clk 0:02:37.9]} 12. Rad1 {[%clk 0:02:23.6]} 12... Qe7
{[%clk 0:02:19.9]} 13. a3 {[%clk 0:02:14.4]} 13... Nf7 {[%clk 0:02:17.4]} 14. b4
{[%clk 0:02:12.8]} 14... Nc7 {[%clk 0:01:58.1]} 15. c5 {[%clk 0:02:11.2]} 15...
Ne6 {[%clk 0:01:48.6]} 16. d5 {[%clk 0:02:03.7]} 16... Nf4 {[%clk 0:01:41.7]}
17. dxc6 {[%clk 0:01:55.8]} 17... dxc5 {[%clk 0:01:40.9]} 18. Nd5 {[%clk
0:01:37.9]} 18... Nxd5 {[%clk 0:01:37.4]} 19. exd5 {[%clk 0:01:38.3]} 19... bxc6
{[%clk 0:01:35.1]} 20. d6 {[%clk 0:01:37.4]} 20... Qe6 {[%clk 0:01:11.7]} 21.
bxc5 {[%clk 0:01:36.6]} 21... Bd7 {[%clk 0:01:01.9]} 22. Qc2 {[%clk 0:01:28.4]}
22... Rab8 {[%clk 0:00:48]} 23. Bc4 {[%clk 0:01:28.3]} 23... Qf5 {[%clk
0:00:45]} 24. Qa2 {[%clk 0:01:25.3]} 24... h5 {[%clk 0:00:32.5]} 25. Bg3 {[%clk
0:01:16.3]} 25... e4 {[%clk 0:00:30.5]} 26. Nh4 {[%clk 0:01:08.9]} 26... Qg5
{[%clk 0:00:20.3]} 27. f4 {[%clk 0:01:06.2]} 27... exf3 {[%clk 0:00:18.4]} 28.
Rxf3 {[%clk 0:01:06.2]} 28... Qxc5+ {[%clk 0:00:12.2]} 29. Bf2 {[%clk 0:01:06]}
29... Qg5 {[%clk 0:00:11.7]} 30. Re3 {[%clk 0:00:40.3]} 30... f5 {[%clk
0:00:11.6]} 31. Re7 {[%clk 0:00:38.2]} 31... Be8 {[%clk 0:00:10.3]} 32. Rde1
{[%clk 0:00:34.2]} 32... Bf6 {[%clk 0:00:10.4]} 33. Rxe8 {[%clk 0:00:33.2]}
33... Rbxe8 {[%clk 0:00:09.4]} 34. Rxe8 {[%clk 0:00:28.7]} 34... Rxe8 {[%clk
0:00:09.6]} 35. Bxf7+ {[%clk 0:00:28.9]} 35... Kg7 {[%clk 0:00:10.2]} 36. h3
{[%clk 0:00:19.4]} 36... Rd8 {[%clk 0:00:09.2]} 37. Bxg6 {[%clk 0:00:17.2]}
37... Qc1+ {[%clk 0:00:07.8]} 38. Kh2 {[%clk 0:00:15.9]} 38... Qf4+ {[%clk
0:00:08.3]} 39. Bg3 {[%clk 0:00:16.2]} 39... Qe4 {[%clk 0:00:04.9]} 40. Qf7+
{[%clk 0:00:16]} 1-0

[Event "*** Titled Tuesday Blitz"]
[Site "Chess.com"]
[Date "2021.03.30"]
[Round "1"]
[White "ExtremeLearner"]
[Black "ShimanovAlex"]
[Result "0-1"]
[WhiteElo "2422"]
[BlackElo "2798"]
[TimeControl "180+1"]
[EndTime "10:07:22 PDT"]
[Termination "ShimanovAlex won by checkmate"]

1. d4 {[%clk 0:02:59.6]} 1... d6 {[%clk 0:02:58.4]} 2. Nf3 {[%clk 0:02:58.3]}
2... Nf6 {[%clk 0:02:57.3]} 3. g3 {[%clk 0:02:55.7]} 3... g6 {[%clk 0:02:56.4]}
4. Bg2 {[%clk 0:02:54.1]} 4... Bg7 {[%clk 0:02:57]} 5. O-O {[%clk 0:02:54.3]}
5... O-O {[%clk 0:02:57.6]} 6. b3 {[%clk 0:02:54.6]} 6... e5 {[%clk 0:02:54.7]}
7. dxe5 {[%clk 0:02:52.7]} 7... dxe5 {[%clk 0:02:54.8]} 8. Bb2 {[%clk
0:02:49.3]} 8... e4 {[%clk 0:02:48.4]} 9. Ng5 {[%clk 0:02:32.4]} 9... Qe7 {[%clk
0:02:46.4]} 10. e3 {[%clk 0:02:14.8]} 10... h6 {[%clk 0:02:40.5]} 11. Nh3 {[%clk
0:02:14.7]} 11... g5 {[%clk 0:02:31.2]} 12. Kh1 {[%clk 0:02:02.5]} 12... Nbd7
{[%clk 0:02:23]} 13. Nc3 {[%clk 0:01:55.9]} 13... Ne5 {[%clk 0:02:07.8]} 14. Nd5
{[%clk 0:01:52.2]} 14... Nxd5 {[%clk 0:02:01.2]} 15. Qxd5 {[%clk 0:01:53.1]}
15... Nf3 {[%clk 0:01:47.8]} 16. Bxg7 {[%clk 0:01:45.6]} 16... Kxg7 {[%clk
0:01:48.7]} 17. Ng1 {[%clk 0:01:41.8]} 17... c6 {[%clk 0:01:48]} 18. Qd1 {[%clk
0:01:31]} 18... Rd8 {[%clk 0:01:45.8]} 19. Qc1 {[%clk 0:01:25.8]} 19... Bg4
{[%clk 0:01:41.5]} 20. h3 {[%clk 0:01:21.8]} 20... Nxg1 {[%clk 0:01:32]} 21.
Kxg1 {[%clk 0:01:18]} 21... Bf5 {[%clk 0:01:31.2]} 22. Qb2+ {[%clk 0:01:15.8]}
22... Qf6 {[%clk 0:01:31.1]} 23. Qxf6+ {[%clk 0:01:13.5]} 23... Kxf6 {[%clk
0:01:32]} 24. Rfd1 {[%clk 0:01:13.9]} 24... a5 {[%clk 0:01:31.6]} 25. a4 {[%clk
0:01:10.5]} 25... Ke5 {[%clk 0:01:30.4]} 26. Kf1 {[%clk 0:00:56.9]} 26... Be6
{[%clk 0:01:26.5]} 27. Ke2 {[%clk 0:00:54.5]} 27... h5 {[%clk 0:01:22.1]} 28.
Rxd8 {[%clk 0:00:40.6]} 28... Rxd8 {[%clk 0:01:20.6]} 29. Rd1 {[%clk 0:00:41.5]}
29... Rxd1 {[%clk 0:01:20.1]} 30. Kxd1 {[%clk 0:00:42.4]} 30... h4 {[%clk
0:01:20.7]} 31. gxh4 {[%clk 0:00:29.5]} 31... gxh4 {[%clk 0:01:21.6]} 32. Ke2
{[%clk 0:00:25.9]} 32... b5 {[%clk 0:01:19.8]} 33. Kd2 {[%clk 0:00:19.2]} 33...
f5 {[%clk 0:01:13.6]} 34. Kc3 {[%clk 0:00:17.6]} 34... b4+ {[%clk 0:00:59.6]}
35. Kd2 {[%clk 0:00:16.9]} 35... c5 {[%clk 0:00:59.8]} 36. Bf1 {[%clk
0:00:16.6]} 36... f4 {[%clk 0:00:58.5]} 37. Ke1 {[%clk 0:00:12]} 37... c4 {[%clk
0:00:51.9]} 38. bxc4 {[%clk 0:00:09.5]} 38... Bd7 {[%clk 0:00:51.7]} 39. Kd2
{[%clk 0:00:06.4]} 39... Bxa4 {[%clk 0:00:51.2]} 40. c3 {[%clk 0:00:05.8]} 40...
b3 {[%clk 0:00:49.1]} 41. Kc1 {[%clk 0:00:05.8]} 41... Bd7 {[%clk 0:00:48.6]}
42. Kb2 {[%clk 0:00:06.1]} 42... a4 {[%clk 0:00:48.2]} 43. Ka3 {[%clk
0:00:06.6]} 43... f3 {[%clk 0:00:46.4]} 44. Kb2 {[%clk 0:00:05.8]} 44... Kd6
{[%clk 0:00:46.5]} 45. Ka3 {[%clk 0:00:05.7]} 45... Kc5 {[%clk 0:00:46.8]} 46.
Kb2 {[%clk 0:00:04.6]} 46... Be6 {[%clk 0:00:46.8]} 47. Ka3 {[%clk 0:00:04.4]}
47... Bxc4 {[%clk 0:00:46.9]} 48. Bxc4 {[%clk 0:00:04.6]} 48... Kxc4 {[%clk
0:00:47]} 49. Kxa4 {[%clk 0:00:04.8]} 49... b2 {[%clk 0:00:46.2]} 50. Ka3 {[%clk
0:00:05]} 50... b1=Q {[%clk 0:00:45.6]} 51. Ka4 {[%clk 0:00:05.9]} 51... Qa2#
{[%clk 0:00:45.5]} 0-1

[Event "*** Titled Tuesday Blitz"]
[Site "Chess.com"]
[Date "2021.03.30"]
[Round "1"]
[White "FeketeBarika"]
[Black "UKR_Master"]
[Result "0-1"]
[WhiteElo "2255"]
[BlackElo "2560"]
[TimeControl "180+1"]
[EndTime "10:07:22 PDT"]
[Termination "UKR_Master won by resignation"]

1. Nf3 {[%clk 0:02:56.4]} 1... Nf6 {[%clk 0:02:57.1]} 2. g3 {[%clk 0:02:57.3]}
2... g6 {[%clk 0:02:56.6]} 3. Bg2 {[%clk 0:02:58.2]} 3... Bg7 {[%clk 0:02:56.5]}
4. O-O {[%clk 0:02:59.1]} 4... O-O {[%clk 0:02:56.8]} 5. c4 {[%clk 0:03:00]}
5... c6 {[%clk 0:02:54]} 6. Nc3 {[%clk 0:03:00.9]} 6... d5 {[%clk 0:02:54]} 7.
cxd5 {[%clk 0:03:01.2]} 7... cxd5 {[%clk 0:02:54.9]} 8. d4 {[%clk 0:03:02.1]}
8... Ne4 {[%clk 0:02:55.5]} 9. Bf4 {[%clk 0:02:58.4]} 9... Nxc3 {[%clk
0:02:54.7]} 10. bxc3 {[%clk 0:02:58]} 10... Nc6 {[%clk 0:02:55.3]} 11. Rc1
{[%clk 0:02:50.8]} 11... Bf5 {[%clk 0:02:46]} 12. e3 {[%clk 0:02:42.8]} 12...
Rc8 {[%clk 0:02:45.3]} 13. c4 {[%clk 0:02:34.4]} 13... dxc4 {[%clk 0:02:40.4]}
14. Rxc4 {[%clk 0:02:35.3]} 14... Be4 {[%clk 0:02:39.4]} 15. Nd2 {[%clk
0:02:29.2]} 15... Bxg2 {[%clk 0:02:38.6]} 16. Kxg2 {[%clk 0:02:30.1]} 16... e6
{[%clk 0:02:32.5]} 17. Qf3 {[%clk 0:02:24.4]} 17... g5 {[%clk 0:02:28.1]} 18.
Be5 {[%clk 0:02:21.1]} 18... Bxe5 {[%clk 0:02:27]} 19. dxe5 {[%clk 0:02:20.2]}
19... Qxd2 {[%clk 0:01:53]} 20. Rg4 {[%clk 0:02:15]} 20... h6 {[%clk 0:01:39.2]}
21. Qf6 {[%clk 0:02:05.5]} 21... Kh7 {[%clk 0:01:25.2]} 22. Re4 {[%clk
0:01:51.5]} 22... Qd5 {[%clk 0:01:15.3]} 23. f3 {[%clk 0:01:32.5]} 23... Qd8
{[%clk 0:01:11.4]} 24. h4 {[%clk 0:01:19.9]} 24... Qxf6 {[%clk 0:01:09]} 25.
exf6 {[%clk 0:01:20.8]} 25... Kg6 {[%clk 0:01:08.4]} 26. hxg5 {[%clk 0:01:20.4]}
26... hxg5 {[%clk 0:01:08.5]} 27. f4 {[%clk 0:01:21]} 27... Kxf6 {[%clk
0:01:07.8]} 28. fxg5+ {[%clk 0:01:13]} 28... Kg7 {[%clk 0:01:00.3]} 29. Rg4
{[%clk 0:01:10.7]} 29... Ne5 {[%clk 0:00:59.8]} 30. Rb4 {[%clk 0:00:52.5]} 30...
b6 {[%clk 0:00:57.7]} 31. a4 {[%clk 0:00:45.7]} 31... Rc2+ {[%clk 0:00:57.3]}
32. Kg1 {[%clk 0:00:44.8]} 32... Rh8 {[%clk 0:00:54.7]} 33. Re4 {[%clk
0:00:33.9]} 33... Rhh2 {[%clk 0:00:51.5]} 34. Rff4 {[%clk 0:00:23.1]} 34...
Rhg2+ {[%clk 0:00:38]} 35. Kf1 {[%clk 0:00:13.6]} 35... Nd3 {[%clk 0:00:36.8]}
36. Rf3 {[%clk 0:00:09.9]} 36... Rgf2+ {[%clk 0:00:36.3]} 37. Rxf2 {[%clk
0:00:09.9]} 37... Rxf2+ {[%clk 0:00:36.9]} 38. Kg1 {[%clk 0:00:10.8]} 38... Ra2
{[%clk 0:00:37.6]} 39. Rd4 {[%clk 0:00:09.8]} 39... Nc5 {[%clk 0:00:37.8]} 40.
a5 {[%clk 0:00:09.2]} 40... Rxa5 {[%clk 0:00:38.2]} 41. Rg4 {[%clk 0:00:07.7]}
41... Ra1+ {[%clk 0:00:38.3]} 42. Kg2 {[%clk 0:00:07.2]} 42... Kg6 {[%clk
0:00:39.2]} 43. Kh3 {[%clk 0:00:06.7]} 43... Ra4 {[%clk 0:00:35.5]} 44. Rxa4
{[%clk 0:00:04.8]} 44... Nxa4 {[%clk 0:00:36.2]} 0-1

[Event "*** Titled Tuesday Blitz"]
[Site "Chess.com"]
[Date "2021.03.30"]
[Round "1"]
[White "LionTheLeon_06"]
[Black "KroshkaKami"]
[Result "1-0"]
[WhiteElo "2693"]
[BlackElo "2366"]
[TimeControl "180+1"]
[EndTime "10:07:23 PDT"]
[Termination "LionTheLeon_06 won on time"]

1. c4 {[%clk 0:02:59.6]} 1... e5 {[%clk 0:02:59]} 2. d3 {[%clk 0:02:58.7]} 2...
d6 {[%clk 0:02:58]} 3. Nc3 {[%clk 0:02:57.6]} 3... f5 {[%clk 0:02:55]} 4. g3
{[%clk 0:02:55.4]} 4... Nf6 {[%clk 0:02:55.2]} 5. Bg2 {[%clk 0:02:55.3]} 5... g6
{[%clk 0:02:54.8]} 6. e3 {[%clk 0:02:49.5]} 6... Bg7 {[%clk 0:02:55]} 7. Nge2
{[%clk 0:02:49.7]} 7... O-O {[%clk 0:02:55.2]} 8. O-O {[%clk 0:02:49.6]} 8... c6
{[%clk 0:02:55.7]} 9. e4 {[%clk 0:02:27.8]} 9... fxe4 {[%clk 0:02:48]} 10. dxe4
{[%clk 0:02:27.2]} 10... Be6 {[%clk 0:02:47.5]} 11. b3 {[%clk 0:02:24.6]} 11...
a6 {[%clk 0:02:15.8]} 12. Qd3 {[%clk 0:01:21]} 12... Qe7 {[%clk 0:01:47.8]} 13.
h3 {[%clk 0:01:12.5]} 13... Nbd7 {[%clk 0:01:39.4]} 14. Be3 {[%clk 0:01:09.9]}
14... Rad8 {[%clk 0:01:36.8]} 15. Rad1 {[%clk 0:01:04.6]} 15... Nc5 {[%clk
0:01:32.1]} 16. Qc2 {[%clk 0:01:03.5]} 16... Qc7 {[%clk 0:01:27.6]} 17. f4
{[%clk 0:00:56.9]} 17... exf4 {[%clk 0:01:06.4]} 18. Nxf4 {[%clk 0:00:48.1]}
18... Bf7 {[%clk 0:00:57.7]} 19. e5 {[%clk 0:00:48]} 19... dxe5 {[%clk
0:00:36.7]} 20. Bxc5 {[%clk 0:00:47.7]} 20... exf4 {[%clk 0:00:37]} 21. Bxf8
{[%clk 0:00:46]} 21... Rxf8 {[%clk 0:00:37.9]} 22. gxf4 {[%clk 0:00:37.2]} 22...
Be6 {[%clk 0:00:37.2]} 23. Ne4 {[%clk 0:00:31.5]} 23... Nh5 {[%clk 0:00:34.3]}
24. Ng5 {[%clk 0:00:28.2]} 24... Bf5 {[%clk 0:00:33.6]} 25. Qd2 {[%clk
0:00:28.3]} 25... Qb6+ {[%clk 0:00:32.4]} 26. Kh2 {[%clk 0:00:26.4]} 26... h6
{[%clk 0:00:26.1]} 27. Nf3 {[%clk 0:00:22.2]} 27... Qc7 {[%clk 0:00:24.9]} 28.
Nh4 {[%clk 0:00:20]} 28... Kh7 {[%clk 0:00:15.3]} 29. Qe3 {[%clk 0:00:11.2]}
29... Qf7 {[%clk 0:00:14.1]} 30. Nxf5 {[%clk 0:00:10.7]} 30... Qxf5 {[%clk
0:00:14.6]} 31. Be4 {[%clk 0:00:10.9]} 31... Qe6 {[%clk 0:00:14.4]} 32. Rde1
{[%clk 0:00:09.6]} 32... Qd6 {[%clk 0:00:12.5]} 33. Kh1 {[%clk 0:00:05]} 1-0

[Event "*** Titled Tuesday Blitz"]
[Site "Chess.com"]
[Date "2021.03.30"]
[Round "1"]
[White "Myshakov_Fedor"]
[Black "Harry_Rakkel"]
[Result "1/2-1/2"]
[WhiteElo "2344"]
[BlackElo "2617"]
[TimeControl "180+1"]
[EndTime "10:07:25 PDT"]
[Termination "Game drawn by repetition"]

1. c4 {[%clk 0:02:58.4]} 1... Nf6 {[%clk 0:02:59.6]} 2. Nc3 {[%clk 0:02:57.9]}
2... e6 {[%clk 0:02:59.3]} 3. d4 {[%clk 0:02:57.9]} 3... Bb4 {[%clk 0:02:58.4]}
4. Bd2 {[%clk 0:02:57.7]} 4... O-O {[%clk 0:02:57.2]} 5. Nf3 {[%clk 0:02:58]}
5... d5 {[%clk 0:02:57.1]} 6. c5 {[%clk 0:02:56.8]} 6... b6 {[%clk 0:02:55.9]}
7. a3 {[%clk 0:02:54.2]} 7... Bxc3 {[%clk 0:02:55.5]} 8. Bxc3 {[%clk 0:02:55.1]}
8... Ne4 {[%clk 0:02:55.2]} 9. Rc1 {[%clk 0:02:53.6]} 9... a5 {[%clk 0:02:44.3]}
10. b4 {[%clk 0:02:51.1]} 10... axb4 {[%clk 0:02:42.9]} 11. Bxb4 {[%clk
0:02:51.3]} 11... bxc5 {[%clk 0:02:38.6]} 12. Bxc5 {[%clk 0:02:42.4]} 12... Nxc5
{[%clk 0:02:36.8]} 13. Rxc5 {[%clk 0:02:42.7]} 13... Rxa3 {[%clk 0:02:29.8]} 14.
e3 {[%clk 0:02:42.5]} 14... Nd7 {[%clk 0:02:28.3]} 15. Rc1 {[%clk 0:02:38.2]}
15... c5 {[%clk 0:02:14.6]} 16. dxc5 {[%clk 0:02:35.6]} 16... Qa5+ {[%clk
0:02:13.6]} 17. Qd2 {[%clk 0:02:32.5]} 17... Nxc5 {[%clk 0:02:11.1]} 18. Qxa5
{[%clk 0:02:27.1]} 18... Rxa5 {[%clk 0:02:12]} 19. Be2 {[%clk 0:02:27.2]} 19...
Bd7 {[%clk 0:02:10.3]} 20. Ne5 {[%clk 0:02:24.2]} 20... Ba4 {[%clk 0:02:07.6]}
21. Ra1 {[%clk 0:02:19]} 21... Rfa8 {[%clk 0:02:02.6]} 22. O-O {[%clk
0:02:15.8]} 22... f6 {[%clk 0:01:52.4]} 23. Nf3 {[%clk 0:02:13]} 23... Ne4
{[%clk 0:01:47.1]} 24. Nd4 {[%clk 0:02:10.5]} 24... Kf7 {[%clk 0:01:41.3]} 25.
Rfc1 {[%clk 0:02:08.1]} 25... R8a7 {[%clk 0:01:41]} 26. Bf3 {[%clk 0:02:02.8]}
26... Nd6 {[%clk 0:01:39.8]} 27. h4 {[%clk 0:01:58.3]} 27... Ke7 {[%clk
0:01:37.6]} 28. Bg4 {[%clk 0:01:53.2]} 28... e5 {[%clk 0:01:32.2]} 29. Rxa4
{[%clk 0:01:46.3]} 29... Rxa4 {[%clk 0:01:27.5]} 30. Nc6+ {[%clk 0:01:46.4]}
30... Kf7 {[%clk 0:01:25.9]} 31. Nxa7 {[%clk 0:01:44.6]} 31... Rxa7 {[%clk
0:01:26.8]} 32. Rc5 {[%clk 0:01:44.6]} 32... f5 {[%clk 0:01:25.4]} 33. Bh3
{[%clk 0:01:31.5]} 33... Ke6 {[%clk 0:01:23.7]} 34. f3 {[%clk 0:01:27.6]} 34...
h5 {[%clk 0:01:18.4]} 35. g4 {[%clk 0:01:26.7]} 35... hxg4 {[%clk 0:01:17.5]}
36. fxg4 {[%clk 0:01:26.8]} 36... g6 {[%clk 0:01:17.9]} 37. h5 {[%clk
0:01:27.1]} 37... Ra1+ {[%clk 0:01:07.3]} 38. Kg2 {[%clk 0:01:25.6]} 38... Ra2+
{[%clk 0:01:07.6]} 39. Kg1 {[%clk 0:01:24.8]} 39... fxg4 {[%clk 0:00:35]} 40.
Bxg4+ {[%clk 0:01:23.9]} 40... Kf6 {[%clk 0:00:35.1]} 41. Rc6 {[%clk 0:01:21.4]}
41... Kg5 {[%clk 0:00:27.6]} 42. Rxd6 {[%clk 0:01:19.9]} 42... Kxg4 {[%clk
0:00:27.8]} 43. hxg6 {[%clk 0:01:18.3]} 43... Kg3 {[%clk 0:00:21.3]} 44. Kf1
{[%clk 0:01:16.5]} 44... Ra7 {[%clk 0:00:08.8]} 45. Rxd5 {[%clk 0:01:14.1]}
45... Kf3 {[%clk 0:00:08.9]} 46. Kg1 {[%clk 0:01:11.5]} 46... e4 {[%clk
0:00:08.9]} 47. Rg5 {[%clk 0:01:09.5]} 47... Rg7 {[%clk 0:00:06.7]} 48. Kf1
{[%clk 0:01:07.4]} 48... Kxe3 {[%clk 0:00:06.8]} 49. Rg3+ {[%clk 0:01:03.8]}
49... Kf4 {[%clk 0:00:04.8]} 50. Kf2 {[%clk 0:01:03.2]} 50... e3+ {[%clk
0:00:02]} 51. Rxe3 {[%clk 0:01:01.1]} 51... Rxg6 {[%clk 0:00:02]} 52. Rf3+
{[%clk 0:01:01.4]} 52... Ke4 {[%clk 0:00:02.3]} 53. Re3+ {[%clk 0:01:01.6]}
53... Kf4 {[%clk 0:00:02.5]} 54. Rf3+ {[%clk 0:01:01.9]} 54... Ke4 {[%clk
0:00:02.8]} 55. Re3+ {[%clk 0:01:02.1]} 55... Kf4 {[%clk 0:00:03.1]} 1/2-1/2

[Event "*** Titled Tuesday Blitz"]
[Site "Chess.com"]
[Date "2021.03.30"]
[Round "1"]
[White "manitodeplomo"]
[Black "Sofiia_Hryzlova"]
[Result "0-1"]
[WhiteElo "2577"]
[BlackElo "2313"]
[TimeControl "180+1"]
[EndTime "10:07:26 PDT"]
[Termination "Sofiia_Hryzlova won by resignation"]

1. d4 {[%clk 0:02:57.9]} 1... Nf6 {[%clk 0:02:57.1]} 2. c4 {[%clk 0:02:58.3]}
2... e6 {[%clk 0:02:50]} 3. Nf3 {[%clk 0:02:57.3]} 3... c5 {[%clk 0:02:49]} 4.
d5 {[%clk 0:02:55.8]} 4... exd5 {[%clk 0:02:48.3]} 5. cxd5 {[%clk 0:02:56.7]}
5... d6 {[%clk 0:02:48.7]} 6. Nc3 {[%clk 0:02:56.7]} 6... g6 {[%clk 0:02:48.6]}
7. h3 {[%clk 0:02:56.3]} 7... Bg7 {[%clk 0:02:48.5]} 8. e4 {[%clk 0:02:56.5]}
8... O-O {[%clk 0:02:48.3]} 9. Bd3 {[%clk 0:02:56.9]} 9... Re8 {[%clk
0:02:48.1]} 10. O-O {[%clk 0:02:56.3]} 10... c4 {[%clk 0:02:43.8]} 11. Bxc4
{[%clk 0:02:54.9]} 11... Nxe4 {[%clk 0:02:43.6]} 12. Nxe4 {[%clk 0:02:55]} 12...
Rxe4 {[%clk 0:02:43.5]} 13. Bg5 {[%clk 0:02:51.1]} 13... Qb6 {[%clk 0:02:26.2]}
14. Bd3 {[%clk 0:02:50.6]} 14... Rb4 {[%clk 0:02:13.6]} 15. Re1 {[%clk
0:02:49.7]} 15... Bd7 {[%clk 0:02:13.1]} 16. Rc1 {[%clk 0:02:48.2]} 16... Na6
{[%clk 0:02:07.8]} 17. Re7 {[%clk 0:02:35.7]} 17... Rxb2 {[%clk 0:01:39.3]} 18.
Be3 {[%clk 0:02:32.7]} 18... Qd8 {[%clk 0:01:37]} 19. Re4 {[%clk 0:02:22.2]}
19... Bf5 {[%clk 0:01:25.8]} 20. Rf4 {[%clk 0:02:21]} 20... Bxd3 {[%clk
0:01:17.5]} 21. Qxd3 {[%clk 0:02:21.9]} 21... Nb4 {[%clk 0:01:17.3]} 22. Qc4
{[%clk 0:01:59.1]} 22... Nxa2 {[%clk 0:01:08.6]} 23. Qc7 {[%clk 0:01:47.6]}
23... Nxc1 {[%clk 0:00:41]} 24. Rxf7 {[%clk 0:01:46.4]} 24... Qxc7 {[%clk
0:00:40.2]} 25. Rxc7 {[%clk 0:01:46.9]} 25... Ne2+ {[%clk 0:00:39.4]} 26. Kf1
{[%clk 0:01:46.1]} 26... Rf8 {[%clk 0:00:35.3]} 27. Ng5 {[%clk 0:01:41.5]} 27...
Be5 {[%clk 0:00:26.2]} 28. Ne6 {[%clk 0:01:39.5]} 28... Re8 {[%clk 0:00:22.1]}
29. f4 {[%clk 0:01:37.8]} 29... Bf6 {[%clk 0:00:20.5]} 30. g4 {[%clk 0:01:34.6]}
30... Ng3+ {[%clk 0:00:20.3]} 31. Kg1 {[%clk 0:01:31.8]} 31... Re2 {[%clk
0:00:15.9]} 32. Bxa7 {[%clk 0:01:28.6]} 32... R8xe6 {[%clk 0:00:13.8]} 33. dxe6
{[%clk 0:01:29.5]} 33... Rxe6 {[%clk 0:00:13.9]} 34. Kg2 {[%clk 0:01:24.4]}
34... Ne2 {[%clk 0:00:13.8]} 35. Kf3 {[%clk 0:01:23.5]} 35... Nd4+ {[%clk
0:00:13.6]} 36. Bxd4 {[%clk 0:01:20.2]} 36... Bxd4 {[%clk 0:00:14.5]} 37. Rxb7
{[%clk 0:01:20.4]} 37... Rf6 {[%clk 0:00:12.5]} 38. Ke4 {[%clk 0:01:19.4]} 38...
Bc5 {[%clk 0:00:12.5]} 39. f5 {[%clk 0:01:16]} 39... Rf7 {[%clk 0:00:12.9]} 40.
Rb8+ {[%clk 0:01:11.4]} 40... Kg7 {[%clk 0:00:12.9]} 41. Re8 {[%clk 0:01:01.9]}
41... gxf5+ {[%clk 0:00:11.8]} 42. gxf5 {[%clk 0:01:01.3]} 42... Kf6 {[%clk
0:00:12.3]} 43. Re6+ {[%clk 0:00:58.2]} 43... Kg5 {[%clk 0:00:12.4]} 44. h4+
{[%clk 0:00:48.6]} 44... Kxh4 {[%clk 0:00:11.9]} 45. Kf4 {[%clk 0:00:49]} 45...
Kh5 {[%clk 0:00:11.3]} 46. f6 {[%clk 0:00:48.5]} 46... d5 {[%clk 0:00:09.4]} 47.
Kf5 {[%clk 0:00:45.9]} 47... Bf2 {[%clk 0:00:07.7]} 48. Re7 {[%clk 0:00:40.7]}
48... Rxf6+ {[%clk 0:00:04.9]} 49. Kxf6 {[%clk 0:00:37.9]} 49... Bh4+ {[%clk
0:00:05.8]} 50. Ke5 {[%clk 0:00:38.4]} 50... Bxe7 {[%clk 0:00:06.7]} 51. Kxd5
{[%clk 0:00:39.3]} 51... Kg4 {[%clk 0:00:06.7]} 0-1